fUSD/lending_fUSD_20260508
["ID","MTS","AMOUNT","RATE_DAILY","PERIOD"]
[421823996,1778189744000,-569.19,0.0004249,30]
[421823993,1778189744000,-639.51,0.0004249,30]
[421823994,1778189744000,-571.45,0.0004249,30]
[421823995,1778189744000,-183.74,0.0004249,30]
[421824000,1778189744000,-151.0,0.0004249,30]
[421824017,1778189745000,-394.92823192,0.0004249,120]
[421824021,1778189745000,-571.46,0.0004249,30]
[421824022,1778189745000,-478.84,0.0004249,30]
[421824020,1778189745000,-569.19,0.0004249,30]
[421824019,1778189745000,-183.74,0.0004249,30]
[421824018,1778189745000,-393.36,0.0004249,30]
[421824015,1778189745000,-500.0,0.0004249,120]
[421824023,1778189745000,-151.0,0.0004249,30]
[421824014,1778189745000,-500.0,0.0004249,120]
[421824011,1778189745000,-500.0,0.0004249,120]
[421824012,1778189745000,-500.0,0.0004249,120]
[421824013,1778189745000,-500.0,0.0004249,120]
[421824009,1778189745000,-500.0,0.0004249,120]
[421824010,1778189745000,-500.0,0.0004249,120]
[421824016,1778189745000,-500.0,0.0004249,120]
[421824025,1778189745000,-151.0,0.0004249,30]
[421824030,1778189745000,-478.84,0.0004249,30]
[421824026,1778189745000,-183.74,0.0004249,30]
[421824024,1778189745000,-639.51,0.0004249,30]
[421824039,1778189745000,-183.74,0.0004249,30]
[421824040,1778189745000,-571.45,0.0004249,30]
[421824038,1778189745000,-183.74,0.0004249,30]
[421824036,1778189745000,-478.84,0.0004249,30]
[421824034,1778189745000,-569.23,0.0004249,30]
[421824035,1778189745000,-639.51,0.0004249,30]
[421824037,1778189745000,-151.0,0.0004249,30]
[421824031,1778189745000,-569.19,0.0004249,30]
[421824032,1778189745000,-393.36,0.0004249,30]
[421824028,1778189745000,-571.45,0.0004249,30]
[421824041,1778189745000,-151.0,0.0004249,30]
[421824029,1778189745000,-639.51,0.0004249,30]
[421824027,1778189745000,-393.36,0.0004249,30]
[421824033,1778189745000,-571.48,0.0004249,30]
[421824052,1778189746000,-151.0,0.0004249,30]
[421824053,1778189746000,-183.74,0.0004249,30]
[421824055,1778189746000,-639.51,0.0004249,30]
[421824054,1778189746000,-478.87,0.0004249,30]
[421824050,1778189746000,-183.74,0.0004249,30]
[421824051,1778189746000,-495.24,0.0004249,30]
[421824042,1778189746000,-393.36,0.0004249,30]
[421824049,1778189746000,-643.29,0.0004249,30]
[421824048,1778189746000,-569.19,0.0004249,30]
[421824046,1778189746000,-393.29,0.0004249,30]
[421824044,1778189746000,-639.51,0.0004249,30]
[421824045,1778189746000,-569.19,0.0004249,30]
[421824043,1778189746000,-478.84,0.0004249,30]
[421824047,1778189746000,-571.34,0.0004249,30]
[421824057,1778189746000,-151.0,0.0004249,30]
[421824058,1778189746000,-569.19,0.0004249,30]
[421824059,1778189746000,-393.36,0.0004249,30]
[421824056,1778189746000,-571.45,0.0004249,30]
[421824071,1778189746000,-639.51,0.0004249,30]
[421824070,1778189746000,-151.0,0.0004249,30]
[421824069,1778189746000,-393.36,0.0004249,30]
[421824068,1778189746000,-183.74,0.0004249,30]
[421824066,1778189746000,-400.0,0.0004249,120]
[421824072,1778189746000,-478.84,0.0004249,30]
[421824065,1778189746000,-183.74,0.0004249,30]
[421824063,1778189746000,-639.51,0.0004249,30]
[421824064,1778189746000,-571.45,0.0004249,30]
[421824062,1778189746000,-393.36,0.0004249,30]
[421824060,1778189746000,-478.84,0.0004249,30]
[421824061,1778189746000,-569.23,0.0004249,30]
[421824067,1778189746000,-570.67,0.0004249,30]
[421824085,1778189747000,-478.84,0.0004249,30]
[421824084,1778189747000,-571.03,0.0004249,30]
[421824082,1778189747000,-569.19,0.0004249,30]
[421824081,1778189747000,-183.74,0.0004249,30]
[421824080,1778189747000,-151.0,0.0004249,30]
[421824076,1778189747000,-639.51,0.0004249,30]
[421824078,1778189747000,-478.84,0.0004249,30]
[421824086,1778189747000,-393.36,0.0004249,30]
[421824075,1778189747000,-393.36,0.0004249,30]
[421824073,1778189747000,-569.19,0.0004249,30]
[421824074,1778189747000,-183.74,0.0004249,30]
[421824079,1778189747000,-571.45,0.0004249,30]
[421824083,1778189747000,-639.51,0.0004249,30]
[421824077,1778189747000,-569.23,0.0004249,30]
[421824089,1778189747000,-571.45,0.0004249,30]
[421824101,1778189747000,-478.84,0.0004249,30]
[421824100,1778189747000,-639.56,0.0004249,30]
[421824099,1778189747000,-393.36,0.0004249,30]
[421824097,1778189747000,-569.19,0.0004249,30]
[421824098,1778189747000,-571.45,0.0004249,30]
[421824096,1778189747000,-151.0,0.0004249,30]
[421824087,1778189747000,-151.0,0.0004249,30]
[421824094,1778189747000,-167.85436828,0.0004249,120]
[421824093,1778189747000,-639.51,0.0004249,30]
[421824091,1778189747000,-183.74,0.0004249,30]
[421824090,1778189747000,-478.84,0.0004249,30]
[421824092,1778189747000,-569.19,0.0004249,30]
[421824088,1778189747000,-393.36,0.0004249,30]
[421824095,1778189747000,-183.74,0.0004249,30]
[421824113,1778189748000,-152.35,0.0004249,30]
[421824111,1778189748000,-569.19,0.0004249,30]
[421824112,1778189748000,-478.84,0.0004249,30]
[421824109,1778189748000,-183.74,0.0004249,30]
[421824110,1778189748000,-393.36,0.0004249,30]
[421824108,1778189748000,-639.51,0.0004249,30]
[421824105,1778189748000,-151.0,0.0004249,30]
[421824107,1778189748000,-569.19,0.0004249,30]
[421824104,1778189748000,-183.74,0.0004249,30]
[421824102,1778189748000,-478.84,0.0004249,30]
[421824103,1778189748000,-414.94,0.0004249,30]
[421824115,1778189748000,-571.45,0.0004249,30]
[421824106,1778189748000,-571.45,0.0004249,30]
[421824114,1778189748000,-639.51,0.0004249,30]
[421824116,1778189748000,-500.0,0.0004249,120]
[421824118,1778189748000,-500.0,0.0004249,120]
[421824129,1778189748000,-500.0,0.0004249,120]
[421824130,1778189748000,-500.0,0.0004249,120]
[421824127,1778189748000,-500.0,0.0004249,120]
[421824128,1778189748000,-500.0,0.0004249,120]
[421824126,1778189748000,-500.0,0.0004249,120]
[421824124,1778189748000,-500.0,0.0004249,120]
[421824131,1778189748000,-500.0,0.0004249,120]
[421824123,1778189748000,-500.0,0.0004249,120]
[421824122,1778189748000,-500.0,0.0004249,120]
[421824121,1778189748000,-500.0,0.0004249,120]
[421824120,1778189748000,-500.0,0.0004249,120]
[421824119,1778189748000,-166.26165431,0.0004249,120]
[421824117,1778189748000,-500.0,0.0004249,120]
[421824125,1778189748000,-500.0,0.0004249,120]
[421824141,1778189749000,-151.0,0.0004249,30]
[421824143,1778189749000,-478.84,0.0004249,30]
[421824142,1778189749000,-393.36,0.0004249,30]
[421824139,1778189749000,-500.0,0.0004249,120]
[421824140,1778189749000,-183.74,0.0004249,30]
[421824138,1778189749000,-500.0,0.0004249,120]
[421824136,1778189749000,-500.0,0.0004249,120]
[421824135,1778189749000,-500.0,0.0004249,120]
[421824132,1778189749000,-500.0,0.0004249,120]
[421824134,1778189749000,-500.0,0.0004249,120]
[421824133,1778189749000,-500.0,0.0004249,120]
[421824145,1778189749000,-569.19,0.0004249,30]
[421824137,1778189749000,-500.0,0.0004249,120]
[421824144,1778189749000,-571.45,0.0004249,30]
[421824159,1778189749000,-500.0,0.0004249,120]
[421824147,1778189749000,-500.0,0.0004249,120]
[421824146,1778189749000,-639.51,0.0004249,30]
[421824161,1778189749000,-589.59187497,0.0004249,120]
[421824160,1778189749000,-500.0,0.0004249,120]
[421824158,1778189749000,-500.0,0.0004249,120]
[421824157,1778189749000,-500.0,0.0004249,120]
[421824155,1778189749000,-500.0,0.0004249,120]
[421824156,1778189749000,-500.0,0.0004249,120]
[421824153,1778189749000,-500.0,0.0004249,120]
[421824152,1778189749000,-500.0,0.0004249,120]
[421824151,1778189749000,-500.0,0.0004249,120]
[421824150,1778189749000,-500.0,0.0004249,120]
[421824149,1778189749000,-500.0,0.0004249,120]
[421824148,1778189749000,-500.0,0.0004249,120]
[421824154,1778189749000,-500.0,0.0004249,120]
[421824170,1778189750000,-571.45,0.0004249,30]
[421824175,1778189750000,-571.45,0.0004249,30]
[421824173,1778189750000,-478.84,0.0004249,30]
[421824171,1778189750000,-393.36,0.0004249,30]
[421824172,1778189750000,-639.51,0.0004249,30]
[421824168,1778189750000,-569.19,0.0004249,30]
[421824174,1778189750000,-183.74,0.0004249,30]
[421824166,1778189750000,-151.0,0.0004249,30]
[421824167,1778189750000,-639.51,0.0004249,30]
[421824165,1778189750000,-393.36,0.0004249,30]
[421824163,1778189750000,-183.74,0.0004249,30]
[421824164,1778189750000,-571.45,0.0004249,30]
[421824162,1778189750000,-478.84,0.0004249,30]
[421824169,1778189750000,-569.19,0.0004249,30]
[421824176,1778189750000,-197.45,0.0004249,30]
[421824191,1778189750000,-393.36,0.0004249,30]
[421824177,1778189750000,-393.36,0.0004249,30]
[421824190,1778189750000,-478.84,0.0004249,30]
[421824192,1778189750000,-639.51,0.0004249,30]
[421824189,1778189750000,-183.74,0.0004249,30]
[421824188,1778189750000,-571.45,0.0004249,30]
[421824187,1778189750000,-639.51,0.0004249,30]
[421824186,1778189750000,-393.36,0.0004249,30]
[421824178,1778189750000,-639.51,0.0004249,30]
[421824184,1778189750000,-184.85,0.0004249,30]
[421824182,1778189750000,-478.84,0.0004249,30]
[421824181,1778189750000,-273.47783956,0.0004249,120]
[421824183,1778189750000,-571.45,0.0004249,30]
[421824180,1778189750000,-569.19,0.0004249,30]
[421824179,1778189750000,-478.84,0.0004249,30]
[421824185,1778189750000,-569.19,0.0004249,30]
[421824206,1778189751000,-1101.63537241,0.0004249,120]
[421824204,1778189751000,-1101.63537242,0.0004249,120]
[421824202,1778189751000,-1101.63537242,0.0004249,120]
[421824203,1778189751000,-1101.63537242,0.0004249,120]
[421824201,1778189751000,-1101.63537242,0.0004249,120]
[421824200,1778189751000,-1101.63537242,0.0004249,120]
[421824197,1778189751000,-1101.63537242,0.0004249,120]
[421824198,1778189751000,-1101.63537242,0.0004249,120]
[421824196,1778189751000,-1101.63537242,0.0004249,120]
[421824195,1778189751000,-1101.63537242,0.0004249,120]
[421824194,1778189751000,-1101.63537242,0.0004249,120]
[421824205,1778189751000,-1101.63537241,0.0004249,120]
[421824199,1778189751000,-1101.63537242,0.0004249,120]
[421824193,1778189751000,-569.19,0.0004249,30]
[421824207,1778189751000,-1101.63537241,0.0004249,120]
[421824209,1778189751000,-571.48,0.0004249,30]
[421824208,1778189751000,-393.36,0.0004249,30]
[421824221,1778189751000,-478.84,0.0004249,30]
[421824222,1778189751000,-639.51,0.0004249,30]
[421824220,1778189751000,-183.74,0.0004249,30]
[421824219,1778189751000,-151.0,0.0004249,30]
[421824217,1778189751000,-571.45,0.0004249,30]
[421824218,1778189751000,-585.39,0.0004249,30]
[421824216,1778189751000,-151.0,0.0004249,30]
[421824214,1778189751000,-544.54252,0.0004249,120]
[421824213,1778189751000,-477.57,0.0004249,30]
[421824211,1778189751000,-569.11,0.0004249,30]
[421824212,1778189751000,-183.74,0.0004249,30]
[421824210,1778189751000,-639.51,0.0004249,30]
[421824215,1778189751000,-151.0,0.0004249,30]
[421824229,1778189752000,-151.0,0.0004249,30]
[421824234,1778189752000,-1235.18214925,0.0004249,120]
[421824231,1778189752000,-1107.63007,0.0004249,120]
[421824233,1778189752000,-1191.11104075,0.0004249,120]
[421824232,1778189752000,-1148.61238259,0.0004249,120]
[421824235,1778189752000,-1280.88388878,0.0004249,120]
[421824224,1778189752000,-151.0,0.0004249,30]
[421824228,1778189752000,-151.0,0.0004249,30]
[421824226,1778189752000,-1030.0,0.0004249,120]
[421824227,1778189752000,-387.67,0.0004249,30]
[421824225,1778189752000,-151.0,0.0004249,30]
[421824223,1778189752000,-393.36,0.0004249,30]
[421824230,1778189752000,-1068.11,0.0004249,120]
[421824236,1778189752000,-1000.0,0.0004249,120]
[421824243,1778189752000,-10000.0,0.0004249,120]
[421824238,1778189752000,-1000.0,0.0004249,120]
[421824237,1778189752000,-1000.0,0.0004249,120]
[421824250,1778189752000,-571.45,0.0004249,30]
[421824251,1778189752000,-569.19,0.0004249,30]
[421824246,1778189752000,-11151.57653,0.0004249,120]
[421824247,1778189752000,-11564.18486161,0.0004249,120]
[421824249,1778189752000,-183.74,0.0004249,30]
[421824248,1778189752000,-151.0,0.0004249,30]
[421824244,1778189752000,-10370.0,0.0004249,120]
[421824242,1778189752000,-260.287,0.0004249,120]
[421824245,1778189752000,-10753.69,0.0004249,120]
[421824240,1778189752000,-1000.0,0.0004249,120]
[421824241,1778189752000,-260.287,0.0004249,120]
[421824239,1778189752000,-251.0,0.0004249,120]
[421824262,1778189753000,-10000.0,0.0004249,120]
[421824261,1778189753000,-10000.0,0.0004249,120]
[421824259,1778189753000,-10000.0,0.0004249,120]
[421824260,1778189753000,-12895.88924913,0.0004249,120]
[421824258,1778189753000,-10000.0,0.0004249,120]
[421824255,1778189753000,-11992.05970149,0.0004249,120]
[421824257,1778189753000,-10000.0,0.0004249,120]
[421824264,1778189753000,-8028.48142251,0.0004249,120]
[421824253,1778189753000,-393.36,0.0004249,30]
[421824254,1778189753000,-639.51,0.0004249,30]
[421824252,1778189753000,-478.84,0.0004249,30]
[421824256,1778189753000,-12435.76591044,0.0004249,120]
[421824266,1778189753000,-13867.83952595,0.0004249,120]
[421824263,1778189753000,-486.09,0.0004249,120]
[421824267,1778189753000,-14380.94958841,0.0004249,120]
[421824280,1778189753000,-478.84,0.0004249,30]
[421824265,1778189753000,-13373.03715135,0.0004249,120]
[421824277,1778189753000,-183.94,0.0004249,30]
[421824276,1778189753000,-151.0,0.0004249,120]
[421824278,1778189753000,-571.45,0.0004249,30]
[421824274,1778189753000,-183.74,0.0004249,30]
[421824275,1778189753000,-571.45,0.0004249,30]
[421824279,1778189753000,-639.51,0.0004249,30]
[421824271,1778189753000,-151.0,0.0004249,30]
[421824272,1778189753000,-639.51,0.0004249,30]
[421824270,1778189753000,-393.39,0.0004249,30]
[421824268,1778189753000,-151.0,0.0004249,120]
[421824269,1778189753000,-569.19,0.0004249,30]
[421824273,1778189753000,-478.84,0.0004249,30]
[421824292,1778189754000,-200.0,0.0004249,120]
[421824290,1778189754000,-156.587,0.0004249,120]
[421824288,1778189754000,-520.0,0.0004249,120]
[421824289,1778189754000,-200.0,0.0004249,120]
[421824285,1778189754000,-161.04941715,0.0004249,120]
[421824283,1778189754000,-284.32928574,0.0004249,120]
[421824286,1778189754000,-151.0,0.0004249,120]
[421824284,1778189754000,-165.51017078,0.0004249,120]
[421824282,1778189754000,-569.19,0.0004249,30]
[421824281,1778189754000,-393.36,0.0004249,30]
[421824291,1778189754000,-7142.856,0.0004249,120]
[421824287,1778189754000,-6888.0,0.0004249,120]
[421824293,1778189754000,-162.380719,0.0004249,120]
[421824304,1778189754000,-151.0,0.0004249,120]
[421824295,1778189754000,-162.380719,0.0004249,120]
[421824294,1778189754000,-7407.141672,0.0004249,120]
[421824307,1778189754000,-500.0,0.0004249,120]
[421824305,1778189754000,-8565.75555911,0.0004249,120]
[421824306,1778189754000,-200.0,0.0004249,120]
[421824302,1778189754000,-8260.13072239,0.0004249,120]
[421824303,1778189754000,-500.0,0.0004249,120]
[421824308,1778189754000,-151.0,0.0004249,120]
[421824299,1778189754000,-7965.41053268,0.0004249,120]
[421824300,1778189754000,-500.0,0.0004249,120]
[421824298,1778189754000,-240.03143225,0.0004249,120]
[421824296,1778189754000,-7681.20591386,0.0004249,120]
[421824297,1778189754000,-200.0,0.0004249,120]
[421824301,1778189754000,-151.0,0.0004249,120]
[421824319,1778189755000,-1555.5,0.0004249,30]
[421824320,1778189755000,-500.0,0.0004249,120]
[421824318,1778189755000,-151.0,0.0004249,120]
[421824317,1778189755000,-151.0,0.0004249,120]
[421824316,1778189755000,-500.0,0.0004249,120]
[421824314,1778189755000,-8882.6885148,0.0004249,120]
[421824311,1778189755000,-500.0,0.0004249,120]
[421824313,1778189755000,-151.0,0.0004249,120]
[421824312,1778189755000,-151.0,0.0004249,120]
[421824310,1778189755000,-200.0,0.0004249,120]
[421824309,1778189755000,-8882.6885148,0.0004249,120]
[421824321,1778189755000,-151.0,0.0004249,120]
[421824315,1778189755000,-1500.0,0.0004249,30]
[421824322,1778189755000,-500.0,0.0004249,120]
[421824333,1778189755000,-571.45,0.0004249,30]
[421824324,1778189755000,-151.0,0.0004249,120]
[421824337,1778189755000,-155.84,0.0004249,30]
[421824335,1778189755000,-639.51,0.0004249,30]
[421824336,1778189755000,-569.19,0.0004249,30]
[421824332,1778189755000,-151.0,0.0004249,30]
[421824334,1778189755000,-151.0,0.0004249,30]
[421824338,1778189755000,-151.0,0.0004249,120]
[421824323,1778189755000,-1613.0535,0.0004249,30]
[421824329,1778189755000,-151.0,0.0004249,30]
[421824331,1778189755000,-156.04,0.0004249,30]
[421824328,1778189755000,-1672.7364795,0.0004249,30]
[421824325,1778189755000,-500.0,0.0004249,120]
[421824327,1778189755000,-518.5,0.0004249,120]
[421824326,1778189755000,-151.0,0.0004249,120]
[421824330,1778189755000,-151.0,0.0004249,30]
[421824351,1778189756000,-151.0,0.0004249,120]
[421824350,1778189756000,-1798.80895522,0.0004249,30]
[421824347,1778189756000,-151.0,0.0004249,30]
[421824349,1778189756000,-537.6845,0.0004249,120]
[421824348,1778189756000,-500.0,0.0004249,120]
[421824346,1778189756000,-500.0,0.0004249,120]
[421824341,1778189756000,-478.84,0.0004249,30]
[421824345,1778189756000,-151.0,0.0004249,120]
[421824343,1778189756000,-537.6845,0.0004249,120]
[421824342,1778189756000,-393.36,0.0004249,30]
[421824340,1778189756000,-500.0,0.0004249,120]
[421824352,1778189756000,-500.0,0.0004249,120]
[421824344,1778189756000,-1734.62772924,0.0004249,30]
[421824339,1778189756000,-183.74,0.0004249,30]
[421824353,1778189756000,-500.0,0.0004249,120]
[421824354,1778189756000,-151.0,0.0004249,120]
[421824355,1778189756000,-1865.36488657,0.0004249,30]
[421824368,1778189756000,-500.0,0.0004249,120]
[421824367,1778189756000,-176.29,0.0004249,120]
[421824365,1778189756000,-151.0,0.0004249,120]
[421824362,1778189756000,-500.0,0.0004249,120]
[421824364,1778189756000,-1934.38338737,0.0004249,30]
[421824366,1778189756000,-500.0,0.0004249,120]
[421824361,1778189756000,-170.0,0.0004249,120]
[421824360,1778189756000,-500.0,0.0004249,120]
[421824359,1778189756000,-1934.38338737,0.0004249,30]
[421824358,1778189756000,-151.0,0.0004249,120]
[421824357,1778189756000,-500.0,0.0004249,120]
[421824356,1778189756000,-500.0,0.0004249,120]
[421824363,1778189756000,-301.80394716,0.0004249,120]
[421824378,1778189757000,-500.0,0.0004249,120]
[421824381,1778189757000,-500.0,0.0004249,120]
[421824380,1778189757000,-203.86501493,0.0004249,120]
[421824379,1778189757000,-500.0,0.0004249,120]
[421824377,1778189757000,-196.59114265,0.0004249,120]
[421824376,1778189757000,-500.0,0.0004249,120]
[421824382,1778189757000,-167.81310154,0.0004249,120]
[421824373,1778189757000,-500.0,0.0004249,120]
[421824371,1778189757000,-1038.3445998,0.0004249,120]
[421824372,1778189757000,-500.0,0.0004249,120]
[421824370,1778189757000,-182.81273,0.0004249,120]
[421824369,1778189757000,-500.0,0.0004249,120]
[421824374,1778189757000,-189.57680101,0.0004249,120]
[421824384,1778189757000,-500.0,0.0004249,120]
[421824375,1778189757000,-500.0,0.0004249,120]
[421824385,1778189757000,-211.40802048,0.0004249,120]
[421824383,1778189757000,-500.0,0.0004249,120]
[421824398,1778189757000,-151.0,0.0004249,120]
[421824396,1778189757000,-500.0,0.0004249,120]
[421824397,1778189757000,-2345.0,0.0004249,120]
[421824393,1778189757000,-151.0,0.0004249,120]
[421824399,1778189757000,-500.0,0.0004249,120]
[421824394,1778189757000,-500.0,0.0004249,120]
[421824395,1778189757000,-151.0,0.0004249,120]
[421824391,1778189757000,-500.0,0.0004249,120]
[421824389,1778189757000,-219.23011724,0.0004249,120]
[421824390,1778189757000,-500.0,0.0004249,120]
[421824388,1778189757000,-151.0,0.0004249,120]
[421824386,1778189757000,-500.0,0.0004249,120]
[421824387,1778189757000,-500.0,0.0004249,120]
[421824392,1778189757000,-219.23011724,0.0004249,120]
[421824405,1778189758000,-500.0,0.0004249,120]
[421824400,1778189758000,-152.0,0.0004249,120]
[421824401,1778189758000,-151.0,0.0004249,120]
[421824402,1778189758000,-500.0,0.0004249,120]
[421824403,1778189758000,-152.0,0.0004249,120]
[421824404,1778189758000,-151.0,0.0004249,120]
[421824406,1778189758000,666.72878,0.0004249,120]
[421824410,1778189758000,666.72878,0.0004249,120]
[421824408,1778189758000,8352.47303937,0.0004249,30]
[421824409,1778189758000,16653.38011866,0.0004249,30]
[421824411,1778189758000,187.78006525,0.0004249,120]
[421824412,1778189758000,194.72792766,0.0004249,120]
[421824413,1778189758000,194.72792766,0.0004249,120]
[421824414,1778189758000,985.2132344,0.0004249,120]
[421824415,1778189758000,220.77469693,0.0004249,120]
[421824407,1778189758000,181.08010149,0.0004249,120]
[421824422,1778189902000,-181.70551375,0.00032,120]
[421824421,1778189902000,-160.56,0.00031359,30]
[421824419,1778189902000,-160.56,0.00031359,30]
[421824416,1778189902000,-150.52,0.00025388,30]
[421824420,1778189902000,-160.56,0.00031359,30]
[421824417,1778189902000,-150.96,0.00027045,30]
[421824423,1778189902000,-253.46307035,0.00032,120]
[421824418,1778189902000,-166.58,0.00030742,120]
[421824424,1778189902000,-181.70551375,0.00033,120]
[421824432,1778189902000,-253.46307035,0.00035,120]
[421824428,1778189902000,-253.46307035,0.000339,120]
[421824425,1778189902000,-253.46307035,0.00033,120]
[421824427,1778189902000,-181.70551375,0.000339,120]
[421824430,1778189902000,-1046.07,0.00034904,40]
[421824429,1778189902000,-194.298,0.00034904,40]
[421824431,1778189902000,-181.70551375,0.00035,120]
[421824434,1778189902000,-253.46307035,0.00036,120]
[421824433,1778189902000,-181.70551375,0.00036,120]
[421824426,1778189902000,-161.03,0.00033584,30]
[421824435,1778189902000,-161.03,0.00036886,30]
[421824447,1778189903000,-170.03756,0.0004106,120]
[421824448,1778189903000,-1560.0,0.00041096,120]
[421824451,1778189903000,-94707.46640808,0.000415,120]
[421824454,1778189903000,-515.96815547,0.00041551,120]
[421824450,1778189903000,-5000.0,0.000414,120]
[421824449,1778189903000,-16938.16095314,0.00041209,70]
[421824458,1778189903000,-562.28936108,0.00041656,120]
[421824452,1778189903000,-562.28936108,0.00041513,120]
[421824445,1778189903000,-170.03756,0.0004096,120]
[421824441,1778189903000,-170.03756,0.0004066,120]
[421824443,1778189903000,-170.03756,0.0004086,120]
[421824444,1778189903000,-187598.0,0.0004095,60]
[421824442,1778189903000,-170.03756,0.0004076,120]
[421824437,1778189903000,-842.06,0.0004029,60]
[421824438,1778189903000,-2559.6,0.0004029,60]
[421824440,1778189903000,-186.61350693,0.000404,30]
[421824439,1778189903000,-186.61350693,0.000404,30]
[421824436,1778189903000,-161.03,0.00040187,30]
[421824456,1778189903000,-562.28936108,0.00041572,120]
[421824446,1778189903000,-1009.3,0.00041041,120]
[421824455,1778189903000,-515.96815547,0.00041556,120]
[421824453,1778189903000,-515.96815547,0.00041515,120]
[421824460,1778189903000,-515.96815547,0.00041683,120]
[421824477,1778189903000,-700.0,0.00041743,120]
[421824479,1778189903000,-334.98,0.00041749,120]
[421824474,1778189903000,-1016.65734777,0.00041714,50]
[421824475,1778189903000,-1377.31780754,0.00041714,50]
[421824476,1778189903000,-500.0,0.00041743,120]
[421824473,1778189903000,-1105.74177118,0.00041714,50]
[421824472,1778189903000,-1046.72860604,0.00041714,50]
[421824470,1778189903000,-1085.36332024,0.00041714,50]
[421824469,1778189903000,-1007.35558808,0.00041714,50]
[421824478,1778189903000,-759.54,0.00041749,120]
[421824468,1778189903000,-1033.651227,0.00041714,50]
[421824471,1778189903000,-1137.43733971,0.00041714,50]
[421824463,1778189903000,-656.9,0.0004169,120]
[421824459,1778189903000,-515.96815547,0.00041669,120]
[421824461,1778189903000,-515.96815547,0.00041687,120]
[421824457,1778189903000,-1560.0,0.00041644,120]
[421824464,1778189903000,-336.1,0.0004169,120]
[421824465,1778189903000,-1142.5,0.00041694,120]
[421824466,1778189903000,-201.36,0.00041695,120]
[421824467,1778189903000,-515.96815547,0.0004171,120]
[421824462,1778189903000,-511.98952174,0.00041688,120]
[421824498,1778189904000,-716120.17,0.00042,120]
[421824497,1778189904000,-1000000.0,0.00042,120]
[421824495,1778189904000,-659154.32667546,0.00042,120]
[421824496,1778189904000,-1000000.0,0.00042,120]
[421824494,1778189904000,-515.96815547,0.00041985,120]
[421824492,1778189904000,-515.96815547,0.00041949,120]
[421824493,1778189904000,-515.96815547,0.0004195,120]
[421824490,1778189904000,-500000.0,0.000419,120]
[421824491,1778189904000,-515.96815547,0.00041914,120]
[421824487,1778189904000,-49866.55545139,0.00041875,60]
[421824486,1778189904000,-515.96815547,0.00041865,120]
[421824489,1778189904000,-500000.0,0.000419,120]
[421824482,1778189904000,-515.96815547,0.00041819,120]
[421824483,1778189904000,-5000.0,0.00041837,30]
[421824484,1778189904000,-515.96815547,0.00041848,120]
[421824480,1778189904000,-907.16,0.00041749,120]
[421824481,1778189904000,-515.96815547,0.00041751,120]
[421824500,1778189904000,-151.0,0.00042,30]
[421824488,1778189904000,-33516.32719732,0.00041888,120]
[421824485,1778189904000,-515.96815547,0.00041854,120]
[421824499,1778189904000,-13627.0,0.00042,120]
[421824502,1778189904000,-151.0,0.00042,30]
[421824501,1778189904000,-151.0,0.00042,30]
[421824520,1778189904000,-2653.52410293,0.00042236,120]